[Event "Czech Open-Rapid 2022"]
[Site "Pardubice"]
[Date "2022.07.20"]
[Round "3.32"]
[White "Rakhmangulova, Iulia"]
[Black "Jun, Rudolf"]
[Result "1-0"]
[ECO "B26"]
[WhiteElo "1904"]
[BlackElo "2134"]
[Annotator "TA"]
[PlyCount "123"]
[EventDate "2022.07.20"]
[EventType "swiss"]
[EventCountry "CZE"]
[SourceTitle "playchess.com"]
[Source "ChessBase"]
[SourceQuality "1"]
[TimeControl "1200+10"]

{[%evp 13,123,22,60,0,24,0,0,0,5,-39,52,43,79,56,52,1,2,0,6,0,14,2,145,152,293,293,297,210,323,308,335,193,221,220,212,193,177,159,161,161,197,0,171,164,200,183,166,-120,141,43,330,188,295,285,402,423,412,402,562,555,550,547,636,513,1418,732,793,706,983,987,979,960,936,925,979,910,982,924,881,858,887,822,1078,1108,12844,4595,12845,12845,29985,29986,29986,0,29974,0,29986,29973,12843,12839,12839,2217,29982,29983,12844,12839,12840,12832,12837,12837,12838,5231,29995,29996]} 1. e4 {[%emt 0:00:01]} c5 {[%emt 0:00:01]} 2. Nc3 {[%emt 0:00:01]} Nc6 {[%emt 0:00:02]} 3. g3 {[%emt 0:00:01]} g6 {[%emt 0:00:02]} 4. Bg2 {[%emt 0:00:01]} d6 {[%emt 0:00:01]} 5. d3 {[%emt 0:00:01]} Bg7 {[%emt 0:00:02]} 6. Be3 {[%emt 0:00:01]} e6 {[%emt 0:00:01]} 7. Qd2 {[%emt 0:00:02]} h6 {[%emt 0:00:02]} 8. Nf3 {[%emt 0:00:12] B26: Closed Sicilian: 3 g3, lines with early Be3.} (8. Nge2 $14) 8... a6 {[%emt 0:00:02] [#]} 9. a4 $146 {[%emt 0:00:05][%cal Oe4e5]} ({Predecessor:} 9. Nd1 Nge7 10. c3 Qa5 11. h4 e5 12. Nh2 Be6 13. f4 O-O-O 14. Qf2 Rdf8 15. a4 Kb8 16. b4 {0-1 (39) Hanke,I-Bungter,H Badenweiler 1995}) 9... Nf6 {[%emt 0:00:06]} 10. d4 {[%emt 0:00:39] The position is equal.} cxd4 {[%emt 0:00:12]} 11. Nxd4 {[%emt 0:00:02]} Nxd4 {[%emt 0:00:21]} (11... Ng4 $15) 12. Bxd4 {[%emt 0:00:02]} O-O {[%emt 0:00:44]} 13. O-O {[%emt 0:00:52] White is more active.} Bd7 {[%emt 0:01:58]} 14. Be3 {[%emt 0:02:15]} (14. Rfd1 $14) 14... Ng4 $11 {[%emt 0:00:14]} 15. Bf4 $36 {[%emt 0:00:17][%mdl 2048] White is more active.} e5 {[%emt 0:01:18]} 16. Be3 {[%emt 0:00:02]} Be6 {[%emt 0:00:19]} 17. Rfd1 {[%emt 0:00:41]} Qf6 {[%emt 0:00:52]} (17... Nxe3 $11 {remains equal.} 18. Qxe3 Rc8) 18. Bb6 $16 {[%emt 0:00:58] Black must now prevent h3.} (18. Qxd6 $6 Nxe3 19. fxe3 Qg5 $14) 18... h5 {[%emt 0:01:45]} (18... Qg5 $16 {was called for.} 19. Qxd6 Rfc8) 19. h3 $18 {[%emt 0:00:36]} (19. Qxd6 $6 Rfc8 $18) 19... Nh6 {[%emt 0:00:12]} 20. Qxd6 {[%emt 0:00:23]} Rac8 {[%emt 0:00:40]} (20... Rfc8 $142 21. Be3 Kh7) 21. a5 {[%emt 0:01:50]} Rfe8 {[%emt 0:01:25]} 22. Qd2 {[%emt 0:02:29]} (22. Nd5 $142 Bxd5 23. Qxf6 (23. Qxd5 Qe7 $18) (23. Rxd5 Rxc2 24. Qd7 Re7 $16) 23... Bxf6 24. exd5) 22... Kh7 {[%emt 0:00:17]} 23. Nd5 {[%emt 0:00:46]} Bxd5 {[%emt 0:00:05]} 24. exd5 {[%emt 0:00:03] Hoping for d6.} Qd6 {[%emt 0:00:20]} 25. b4 {[%emt 0:02:05]} e4 {[%emt 0:00:04]} 26. Ra3 {[%emt 0:00:28]} Nf5 {[%emt 0:00:41]} 27. Bc5 $2 {[%emt 0:00:39]} ({White should play} 27. g4 $1 $18 {[%cal Rg4f5]} hxg4 28. hxg4) 27... Qd7 {[%emt 0:00:51]} (27... Rxc5 $11 28. bxc5 Qxc5) 28. c4 {[%emt 0:00:38]} Bh6 {[%emt 0:00:59]} 29. Qe1 {[%emt 0:01:00]} e3 {[%emt 0:00:40]} 30. f4 $2 {[%emt 0:00:26] [#] Against Re5} (30. fxe3 Rxc5 $1 {[%mdl 512]} 31. bxc5 Bxe3+ 32. Rxe3 Nxe3 $17) (30. Qe2 $18) 30... Bg7 $2 {[%emt 0:02:00][%mdl 8192] [#]} (30... e2 $1 $17 {[%cal Re2d1]} 31. Rb1 (31. Rd2 Rxc5 32. bxc5 Qc7 $17) 31... h4) 31. Kh2 {[%emt 0:00:22] Black is on the road to losing.} (31. Bxe3 Bb2 32. Rb3 Bd4 33. Rxd4 Nxd4 $17) (31. Rad3 $1 $16) 31... Nd6 $2 {[%emt 0:00:53][%mdl 8192]} (31... h4 $14) 32. Qe2 {[%emt 0:00:38]} (32. Bxe3 Nxc4 33. Rad3 Nb2 $17) (32. Bxd6 $142 Qxd6 33. c5 (33. Rxe3 Rxe3 34. Qxe3 Rxc4 $11)) 32... h4 {[%emt 0:00:28]} (32... Rxc5 $142 33. bxc5 Nf5) 33. g4 {[%emt 0:00:19]} (33. gxh4 $6 Nf5 $16) (33. Rxe3 hxg3+ 34. Kh1 (34. Kxg3 Nf5+ 35. Kh2 Nxe3 $17) 34... Nf5 $16) 33... Ne4 {[%emt 0:00:33]} (33... Kg8 $142 34. Rf1 Bf8 35. Bxd6 (35. Rxe3 Rxe3 36. Qxe3 Nxc4 $18) 35... Bxd6) 34. Bxe4 {[%emt 0:01:09]} Rxe4 {[%emt 0:00:01]} 35. Rxe3 {[%emt 0:00:25]} Rxf4 {[%emt 0:00:11]} 36. Re7 {[%emt 0:00:25]} Qa4 {[%emt 0:00:01]} 37. d6 {[%emt 0:00:21] d7 is the strong threat.} Rd8 {[%emt 0:02:34]} 38. d7 {[%emt 0:00:57]} Rxc4 {[%emt 0:00:14]} (38... Bf8 $142 39. Rf1 (39. Re8 Rxd7 40. Rxd7 Bxc5 $11) 39... Rxf1 40. Qxf1 Bxe7 41. Bxe7 (41. Qxf7+ Kh6 $11) 41... Kg8) 39. Bb6 {[%emt 0:00:58]} Rc2 {[%emt 0:01:09]} 40. Rd2 {[%emt 0:00:01]} Rxd7 {[%emt 0:02:53]} 41. Rexd7 {[%emt 0:00:09]} Qxd7 {[%emt 0:00:18]} 42. Rxc2 {[%emt 0:00:16]} Qd6+ {[%emt 0:00:05]} 43. Kg1 {[%emt 0:00:26]} Qg3+ {[%emt 0:00:16]} 44. Qg2 {[%emt 0:00:07]} Qe1+ {[%emt 0:00:01]} 45. Qf1 {[%emt 0:00:29]} Qg3+ {[%emt 0:00:03]} 46. Rg2 {[%emt 0:00:30]} Qxh3 {[%emt 0:00:07]} 47. Qxf7 {[%emt 0:00:13]} Qd3 {[%emt 0:00:06] Against Bd4} 48. Bc5 {[%emt 0:00:41] Strongly threatening Bf8.} h3 {[%emt 0:00:10]} 49. Rf2 {[%emt 0:01:04]} Qd1+ {[%emt 0:01:40]} 50. Kh2 {[%emt 0:00:51] Threatening mate with Bf8.} Kh8 {[%emt 0:00:02]} 51. Qe8+ {[%emt 0:00:12]} Kh7 {[%emt 0:00:01]} 52. Qf7 {[%emt 0:00:12]} Kh8 $1 {[%emt 0:00:01]} 53. Qe8+ {[%emt 0:00:11]} Kh7 {[%emt 0:00:01]} 54. Qe4 {[%emt 0:00:06]} Qb3 {[%emt 0:00:19]} 55. Qf3 {[%emt 0:00:05]} Be5+ {[%emt 0:00:02]} 56. Kh1 {[%emt 0:00:04]} Qb1+ {[%emt 0:00:36]} 57. Rf1 {[%emt 0:00:02]} Qc2 {[%emt 0:00:09]} 58. Qxh3+ {[%emt 0:00:05]} Kg7 {[%emt 0:00:04]} 59. Rf2 {[%emt 0:00:12]} Qd1+ {[%emt 0:00:06]} 60. Kg2 {[%emt 0:00:08] g5 would kill now.} g5 {[%emt 0:00:16]} 61. Qf3 {[%emt 0:00:06]} Bf4 {[%emt 0:00:03]} 62. Qxd1 {[%emt 0:00:13] Weighted Error Value: White=0.49/Black=0.82} 1-0

[Event "Czech Open-Rapid 2022"]
[Site "Pardubice"]
[Date "2022.07.20"]
[Round "3.33"]
[White "Jares, Michal"]
[Black "Fiala, Jan"]
[Result "1-0"]
[ECO "E69"]
[WhiteElo "2208"]
[BlackElo "2019"]
[Annotator "TA"]
[PlyCount "87"]
[EventDate "2022.07.20"]
[EventType "swiss"]
[EventCountry "CZE"]
[SourceTitle "playchess.com"]
[Source "ChessBase"]
[SourceQuality "1"]
[TimeControl "1200+10"]

{[%evp 18,87,33,30,35,40,35,14,18,0,16,14,23,9,23,0,0,0,25,19,21,24,22,21,24,15,71,6,2,2,0,-12,0,-10,-20,-3,-18,-20,-9,-15,0,-19,0,-32,0,-13,0,-18,-15,-35,0,0,80,31,165,175,152,10,16,-13,8,7,9,-95,45,-18,271,270,260,255,1601,1555]} 1. d4 {[%emt 0:00:05]} Nf6 {[%emt 0:00:01]} 2. Nf3 {[%emt 0:00:03]} g6 {[%emt 0:00:20]} 3. g3 {[%emt 0:00:03]} Bg7 {[%emt 0:00:01]} 4. Bg2 {[%emt 0:00:03]} O-O {[%emt 0:00:15]} 5. O-O {[%emt 0:00:03]} d6 {[%emt 0:00:02]} 6. c4 {[%emt 0:00:04]} Nbd7 {[%emt 0:00:04]} 7. Nc3 {[%emt 0:00:03]} e5 {[%emt 0:00:31]} 8. e4 {[%emt 0:00:04]} c6 {[%emt 0:01:37]} 9. h3 {[%emt 0:00:18]} Re8 {[%emt 0:00:25]} 10. Re1 {[%emt 0:00:14]} b6 {[%emt 0:01:23] E69: King's Indian: Fianchetto: 6...Nbd7 7 0-0 e5 8 e4 c6 9 h3.} 11. b3 {[%emt 0:01:13]} Bb7 {[%emt 0:00:04]} 12. Bb2 {[%emt 0:00:45]} Qc7 {[%emt 0:00:10] The position is equal.} 13. Qc2 {[%emt 0:00:50]} Rad8 {[%emt 0:00:29]} (13... b5 $5) 14. Rad1 {[%emt 0:00:09] [#]} a6 $146 {[%emt 0:02:33]} ({Predecessor:} 14... b5 15. c5 dxc5 16. dxe5 Nh5 17. Ne2 Nxe5 18. Bxe5 Bxe5 19. Qxc5 Bd6 20. Qe3 Nf6 {0-1 (33) Aguilar Sevilla,D (2057)-Zanoletty Garcia,D (2038) Logrono 2002}) 15. Qd2 {[%emt 0:01:46]} Qb8 {[%emt 0:01:38]} 16. dxe5 {[%emt 0:03:36]} dxe5 {[%emt 0:00:40]} 17. Qe3 {[%emt 0:00:52]} Nc5 {[%emt 0:01:35]} 18. b4 {[%emt 0:01:34]} Ncd7 {[%emt 0:01:54]} 19. a3 {[%emt 0:00:11]} Qc7 {[%emt 0:00:07]} 20. Rd2 {[%emt 0:00:53]} Nf8 {[%emt 0:00:25]} 21. Red1 {[%emt 0:00:47]} Ne6 {[%emt 0:00:41] [#]} (21... Rxd2 $11 22. Rxd2 (22. Qxd2 a5 $11) 22... N6d7) 22. Na4 {[%emt 0:00:47]} (22. Nxe5 $1 $16 {And now Rxd8 would win.} Rxd2 23. Rxd2) 22... Rxd2 $11 {[%emt 0:00:50]} 23. Rxd2 {[%emt 0:00:18]} Nd7 {[%emt 0:00:13]} 24. Rd1 {[%emt 0:01:53]} b5 {[%emt 0:00:36]} 25. cxb5 {[%emt 0:01:03]} cxb5 {[%emt 0:00:24]} 26. Rc1 {[%emt 0:00:24]} Qd6 {[%emt 0:00:57]} 27. Nc5 {[%emt 0:00:19]} Nexc5 {[%emt 0:00:25]} 28. bxc5 {[%emt 0:00:02]} Qc6 {[%emt 0:00:37]} 29. Nd2 {[%emt 0:00:18]} Qc7 {[%emt 0:01:01]} 30. Nb3 {[%emt 0:00:30]} Bc6 {[%emt 0:00:06]} 31. Qc3 {[%emt 0:00:25]} Bf8 {[%emt 0:00:28]} 32. Rc2 {[%emt 0:01:04]} Rc8 {[%emt 0:00:10]} 33. Bc1 {[%emt 0:00:14]} Ra8 {[%emt 0:00:11]} 34. Na5 {[%emt 0:01:06]} Bg7 {[%emt 0:00:18]} (34... Rc8 $11) 35. Be3 {[%emt 0:00:13] White is more active.} ({Better is} 35. Nxc6 $16 Qxc6 36. h4) 35... Nf6 {[%emt 0:00:03]} (35... Nf8 $1 $14) 36. Nxc6 $18 {[%emt 0:00:24]} Qxc6 {[%emt 0:00:01]} 37. Qd3 {[%emt 0:00:03] Inhibits Rd8.} ({White should try} 37. Qxe5 $16 {aiming for Qd6.} Rd8 38. Qf4) 37... Bf8 $11 {[%emt 0:00:19]} 38. g4 {[%emt 0:00:57]} Be7 {[%emt 0:00:06]} 39. Qc3 {[%emt 0:00:11]} Nd7 {[%emt 0:00:11]} 40. Rd2 {[%emt 0:00:51]} (40. g5 $11 {remains equal.}) 40... f6 {[%emt 0:00:09]} (40... Rc8 $17) 41. Rd5 {[%emt 0:00:13]} ({White should play} 41. g5 $14 fxg5 42. Bf3) 41... Nb6 $2 {[%emt 0:00:09][%mdl 8192] [#]} (41... g5 $11) 42. Qb3 $1 $18 {[%emt 0:00:23] Intending Rd8+ and mate.} Nc4 {[%emt 0:00:06] [#]} 43. Bf1 $1 {[%emt 0:00:12]} Nxe3 $2 {[%emt 0:00:05]} (43... Kf7 44. Bxc4 bxc4 45. Qxc4 Qb5) 44. Rd6+ {[%emt 0:00:41] Weighted Error Value: White=0.26 (precise) /Black=0.40} 1-0

[Event "Czech Open-Rapid 2022"]
[Site "Pardubice"]
[Date "2022.07.20"]
[Round "3.34"]
[White "Ni, Polina"]
[Black "Ret, Adam Josef"]
[Result "0-1"]
[ECO "B07"]
[WhiteElo "1871"]
[BlackElo "2023"]
[Annotator "TA"]
[PlyCount "86"]
[EventDate "2022.07.20"]
[EventType "swiss"]
[EventCountry "CZE"]
[SourceTitle "playchess.com"]
[Source "ChessBase"]
[SourceQuality "1"]
[TimeControl "1200+10"]

{[%evp 9,86,-29,17,16,11,-2,20,-34,-22,-72,-72,-235,-244,-259,-255,-287,-287,-224,-270,-358,-339,-347,-333,-461,-235,-222,-239,-360,-370,-487,-495,-568,-445,-376,-353,-437,-423,-507,-479,-578,-264,-452,-457,-557,-522,-588,-556,-496,-235,-1152,-347,-337,-348,-316,-292,-407,-391,-370,-310,-464,-462,-456,-312,-453,-450,-470,-466,-571,-577,-617,-612,-637,-616,-853,-708,-5190,-5122,-5922,-5613]} 1. e4 {[%emt 0:00:02]} d6 {[%emt 0:00:01]} 2. d4 {[%emt 0:00:02]} Nf6 {[%emt 0:00:02]} 3. Nc3 {[%emt 0:00:01]} Nbd7 {[%emt 0:00:03]} 4. f4 {[%emt 0:00:07]} e5 {[%emt 0:00:12]} 5. f5 {[%emt 0:01:09] [#]} h5 $146 {[%emt 0:00:38]} (5... a6 {feels stronger.}) ({Predecessor:} 5... exd4 6. Qxd4 Be7 7. Nf3 c6 8. Bc4 O-O 9. Be3 d5 10. exd5 Bc5 11. Qf4 Bxe3 12. Qxe3 {0-1 (36) Villeneuve,C-Fominykh,M (2206) Europe Echecs INT 2021}) 6. Nf3 $11 {[%emt 0:00:09] B07: Pirc Defence: Miscellaneous Systems.} Be7 {[%emt 0:00:11]} 7. Be3 {[%emt 0:00:22]} c6 {[%emt 0:00:02]} 8. Bc4 {[%emt 0:03:10]} (8. dxe5 $11 dxe5 9. Bd3) 8... b5 {[%emt 0:00:16]} 9. Bb3 {[%emt 0:01:33]} (9. dxe5 $11 {keeps the balance.} Nxe5 10. Nxe5 dxe5 11. Bd3) 9... b4 $17 {[%emt 0:01:05]} 10. Ng5 $2 {[%emt 0:00:22]} (10. Na4 $17) 10... Rf8 $19 {[%emt 0:00:31]} (10... bxc3 11. Bxf7+ Kf8 12. Ne6+ Kxf7 13. Nxd8+ Bxd8 14. bxc3 $15) 11. Ne2 {[%emt 0:00:51]} Ng4 $1 {[%emt 0:00:05][%csl LRe3,LRg5]} 12. Bxf7+ {[%emt 0:01:56]} Rxf7 {[%emt 0:00:03]} 13. Nxf7 {[%emt 0:00:02]} Kxf7 {[%emt 0:00:45]} (13... Nxe3 14. Nxd8 Nxd1 15. Ne6 $11 (15. Nxc6 Ne3 $17)) 14. Qd3 {[%emt 0:01:38] [#]} Ba6 $1 {[%emt 0:01:43][%mdl 512] Active counter play!} 15. Qxa6 {[%emt 0:02:36] Hoping for Bd2.} Nxe3 {[%emt 0:00:05]} 16. Qd3 {[%emt 0:01:08]} Nxg2+ {[%emt 0:00:16] Pair of Knights!} ({Avoid the trap} 16... Bg5 $2 17. h4 Bxh4+ 18. Kd2 $19) (16... Bh4+ $142 17. g3 Bg5) 17. Kf2 {[%emt 0:00:49]} Nh4 {[%emt 0:00:17]} ({Weaker is} 17... Nf4 18. Nxf4 exf4 19. Kf3) 18. Qc4+ {[%emt 0:01:01]} (18. Rhf1 $142) 18... Kf8 {[%emt 0:00:09] And now ...Nf6 would win.} 19. Rhg1 {[%emt 0:01:20]} Nf6 {[%emt 0:00:22][%cal Bd7f6,Bf6g4,Bg4h2,Bh2f3,Bf3g1][%mdl 32]} 20. Ng3 {[%emt 0:02:16]} Ng4+ {[%emt 0:00:08]} 21. Ke2 {[%emt 0:00:02]} Qe8 {[%emt 0:00:58]} 22. Qe6 {[%emt 0:00:32]} Nxh2 {[%emt 0:01:03]} 23. f6 {[%emt 0:00:34]} Bxf6 {[%emt 0:00:29]} 24. Qxd6+ {[%emt 0:00:11]} Qe7 {[%emt 0:00:08]} (24... Kg8 $142 25. Nf5 {[#]} (25. Qxf6 $2 gxf6 26. Nf5+ Kh7 $19) 25... exd4 $1) 25. Qxc6 $2 {[%emt 0:00:22]} (25. Qxe7+ Kxe7 26. Nxh5) 25... Rd8 {[%emt 0:00:41]} 26. d5 {[%emt 0:00:08]} N2f3 {[%emt 0:00:02] Strongly threatening ...Nd4+.} 27. Rad1 {[%emt 0:01:10]} Nxg1+ {[%emt 0:00:41]} 28. Rxg1 {[%emt 0:00:01]} Qd6 {[%emt 0:00:21]} (28... g6 $142 29. Nh1 Kg7) 29. Qb7 $2 {[%emt 0:00:23]} (29. Qxd6+ Rxd6 30. Nxh5) 29... Qb6 $2 {[%emt 0:00:13]} (29... Qc5 30. Kf1 Qc4+ 31. Ke1 Nf3+ 32. Kf2 Nxg1 33. Kxg1 Qd4+ 34. Kh2 h4) 30. Qxb6 {[%emt 0:00:18]} axb6 {[%emt 0:00:02]} 31. Nxh5 {[%emt 0:00:09]} Kf7 {[%emt 0:00:04]} 32. a3 {[%emt 0:00:29]} bxa3 {[%emt 0:00:32]} 33. bxa3 {[%emt 0:00:01]} Ra8 {[%emt 0:00:02]} 34. Rg3 {[%emt 0:00:17]} (34. Nxf6 $142 gxf6 35. Rb1) 34... Ng6 {[%emt 0:00:23]} 35. Rb3 {[%emt 0:00:30]} Bd8 {[%emt 0:00:27]} 36. c4 {[%emt 0:00:16]} (36. Rf3+ $142 Bf6 37. Rb3) 36... Nf8 {[%emt 0:01:30] Black is clearly winning.} 37. Ng3 {[%emt 0:00:10]} g6 {[%emt 0:00:05]} 38. Kd3 {[%emt 0:00:04]} Nd7 {[%emt 0:00:03] White must now prevent ...Nc5+.} 39. Ke3 {[%emt 0:00:14]} Be7 {[%emt 0:00:06]} 40. a4 {[%emt 0:00:13]} Rxa4 {[%emt 0:00:03]} 41. Rc3 {[%emt 0:00:09]} Bc5+ {[%emt 0:00:07]} 42. Kd3 {[%emt 0:00:02]} Bd4 {[%emt 0:00:02] ( -> ...Nc5+)} 43. Rc1 {[%emt 0:00:19]} Ra3+ {[%emt 0:00:02] Black took control after the opening.  Weighted Error Value: White=1.13/Black=0.64} 0-1

[Event "Czech Open-Rapid 2022"]
[Site "Pardubice"]
[Date "2022.07.20"]
[Round "3.35"]
[White "Bares, Jachym"]
[Black "Abisso, Filippo"]
[Result "1-0"]
[ECO "B77"]
[WhiteElo "2129"]
[BlackElo "1595"]
[Annotator "TA"]
[PlyCount "63"]
[EventDate "2022.07.20"]
[EventType "swiss"]
[EventCountry "CZE"]
[SourceTitle "playchess.com"]
[Source "ChessBase"]
[SourceQuality "1"]
[TimeControl "1200+10"]

{[%evp 24,63,36,35,38,26,41,21,9,39,2,0,0,0,575,30,633,0,355,261,256,-7,434,410,453,422,452,379,487,229,271,280,448,431,438,373,1635,1629,1550,1489,1240,1231]} 1. e4 {[%emt 0:00:02]} c5 {[%emt 0:00:03]} 2. Nf3 {[%emt 0:00:02]} Nc6 {[%emt 0:00:03]} 3. d4 {[%emt 0:00:04]} cxd4 {[%emt 0:00:10]} 4. Nxd4 {[%emt 0:00:05]} Nf6 {[%emt 0:00:09]} 5. Nc3 {[%emt 0:00:02]} g6 {[%emt 0:00:07]} 6. Be3 {[%emt 0:00:08]} Bg7 {[%emt 0:00:07]} 7. Bc4 {[%emt 0:00:05]} O-O {[%emt 0:00:14]} 8. f3 {[%emt 0:00:11]} d6 {[%emt 0:00:11]} 9. Qd2 {[%emt 0:00:01]} Bd7 {[%emt 0:00:21]} 10. h4 {[%emt 0:00:05]} h5 {[%emt 0:00:09]} 11. O-O-O {[%emt 0:00:03]} Rc8 {[%emt 0:00:29]} 12. Bb3 {[%emt 0:00:01]} Ne5 {[%emt 0:00:19]} 13. Bh6 {[%emt 0:01:01]} Qa5 {[%emt 0:01:30] B78: Sicilian Dragon: Yugoslav Attack, 9 Bc4 Bd7 10 0-0-0 Rc8.} 14. Kb1 {[%emt 0:00:38]} Nc4 {[%emt 0:00:49]} 15. Bxc4 {[%emt 0:00:04]} Rxc4 {[%emt 0:00:12] The position is equal.} 16. Bxg7 {[%emt 0:01:15]} Kxg7 {[%emt 0:00:05]} 17. g4 {[%emt 0:02:27]} hxg4 {[%emt 0:00:31][%cal Oc4c3] White must now prevent ...Rxc3!} 18. h5 $1 {[%emt 0:00:02] [#]} gxh5 $146 {[%emt 0:01:07][%mdl 8192]} (18... Rh8 $1 $11) ({Predecessor:} 18... Rxc3 19. hxg6 fxg6 20. bxc3 Kf7 21. fxg4 Bxg4 22. Rdf1 Ke8 23. Qg2 Bh5 24. Ne6 Rg8 25. Rxf6 exf6 {½-½ (71) Svetushkin,D (2461)-Potapov,A (2505) Patras 2001}) 19. fxg4 $2 {[%emt 0:00:04]} (19. Nf5+ $1 $18 Bxf5 20. Qg5+ Bg6 21. Qxa5 gxf3 22. e5) 19... Bxg4 $2 {[%emt 0:00:26][%mdl 8192]} (19... Nxg4 $2 20. Nf5+ Bxf5 21. Qg5+ Bg6 22. Qxa5 $18) (19... Nxe4 $11 20. Nxe4 Qxd2 21. Rxd2 hxg4) 20. Rdg1 $2 {[%emt 0:00:05]} (20. Nf5+ $1 $18 Qxf5 21. exf5 Bxd1 22. Nxd1) 20... Rfc8 $2 {[%emt 0:03:04][%mdl 8192]} (20... Rh8 $11 21. Nf5+ Kf8) 21. Nf5+ {[%emt 0:05:55] Pair of Knights!} Kf8 {[%emt 0:00:20][%cal Rc4c3] [#] Strongly threatening ...Rxc3.} 22. Nxe7 $2 {[%emt 0:00:02] Dancing on a razor blade.} Kxe7 $4 {[%emt 0:00:57][%mdl 8192]} (22... Nxe4 $11 23. Nxe4 Qxd2 24. Nxd2 Kxe7 25. Nxc4 Rxc4) 23. Nd5+ $18 {[%emt 0:00:01][%mdl 64] Discovered Attack} Qxd5 {[%emt 0:01:52]} 24. exd5 {[%emt 0:00:02]} Ne4 {[%emt 0:01:50] Inhibits Qg5+.} 25. Re1 {[%emt 0:00:34]} f5 {[%emt 0:00:32] [#]} 26. c3 {[%emt 0:01:48]} ({Weaker is} 26. Qh6 Re8 27. Qg7+ Kd8 28. Qxb7 Re7 $18) (26. Rxh5 $142 $3 {[%mdl 512] White threatens Qg5+ and mate.} Bxh5 27. Qg5+ Kd7 28. Qxf5+ Kc7 29. Qxh5) 26... Kd7 {[%emt 0:00:22]} 27. Qh6 {[%emt 0:00:28]} Kc7 {[%emt 0:00:23]} (27... Re8 {keeps fighting.} 28. Ka1 Re5 29. Qg7+ Re7) 28. Rxh5 {[%emt 0:01:20]} Bxh5 {[%emt 0:00:07]} 29. Qxh5 {[%emt 0:00:02]} f4 $2 {[%emt 0:01:57] [#]} (29... Rd8 30. Qxf5 Nc5) 30. Rxe4 $1 {[%emt 0:00:48][%mdl 512] White is clearly winning.} Rxe4 {[%emt 0:00:52]} 31. Qh7+ {[%emt 0:00:02]} Kb8 {[%emt 0:00:21]} 32. Qxe4 {Weighted Error Value: White=0.99/Black=1.87} 1-0

[Event "Czech Open-Rapid 2022"]
[Site "Pardubice"]
[Date "2022.07.20"]
[Round "3.36"]
[White "Skoloud, Barnabas"]
[Black "Malinovsky, Petr"]
[Result "1/2-1/2"]
[ECO "B20"]
[WhiteElo "1852"]
[BlackElo "1959"]
[Annotator "TA"]
[PlyCount "69"]
[EventDate "2022.07.20"]
[EventType "swiss"]
[EventCountry "CZE"]
[SourceTitle "playchess.com"]
[Source "ChessBase"]
[SourceQuality "1"]
[TimeControl "1200+10"]

{[%evp 11,69,15,20,8,14,8,19,0,14,2,35,-7,-15,-16,-9,-30,16,13,19,3,30,30,39,0,32,25,29,0,17,-6,0,0,6,2,8,-56,-66,-75,-70,-66,-31,-31,-20,-38,-28,-8,79,83,77,85,460,448,413,43,37,0,0,28,0,0]} 1. e4 c5 {[%emt 0:00:01]} 2. c4 {[%emt 0:00:03]} e5 {[%emt 0:00:11]} 3. Nc3 {[%emt 0:00:05]} Nc6 {[%emt 0:00:09]} 4. d3 {[%emt 0:00:06]} d6 {[%emt 0:00:35]} 5. g3 {[%emt 0:00:19]} f5 {[%emt 0:00:38]} 6. Bg2 {[%emt 0:00:39]} Nf6 {[%emt 0:00:13]} 7. Nge2 {[%emt 0:00:14] A36: Symmetrical English vs ...g6: 4 Bg2 Bg7.} Be7 {[%emt 0:00:19]} 8. O-O {[%emt 0:00:36]} O-O {[%emt 0:00:14]} 9. a3 {[%emt 0:03:08] [#]} Rb8 $146 {[%emt 0:00:40]} ({Predecessor:} 9... Nd4 10. exf5 Nxf5 11. b4 Kh8 12. Rb1 Rb8 13. bxc5 dxc5 14. Nd5 Nxd5 15. Bxd5 b5 {0-1 (37) Idani,P (2372)-Shanava,K (2539) Jermuk 2011}) 10. Rb1 {[%emt 0:00:44]} (10. b4 {feels hotter.} fxe4 11. Nxe4 Nxe4 12. Bxe4 Bg4 13. f3) 10... Nd4 {[%emt 0:00:23]} 11. Nxd4 {[%emt 0:01:15]} cxd4 {[%emt 0:01:07]} 12. Nd5 {[%emt 0:00:27]} Nxd5 {[%emt 0:00:43]} 13. exd5 {[%emt 0:01:55]} b6 {[%emt 0:01:36]} (13... b5 $142) 14. f4 $11 {[%emt 0:05:55]} Bf6 {[%emt 0:00:10]} 15. Bd2 Rf7 {[%emt 0:00:59]} 16. b4 {[%emt 0:00:30]} Bd7 {[%emt 0:02:30]} 17. b5 Qc7 {[%cal Oe5e4]} 18. a4 {[%emt 0:02:00]} Re8 {[%emt 0:00:16]} 19. Bb4 {[%emt 0:01:29]} e4 {[%emt 0:00:21]} 20. Re1 {[%emt 0:00:57][%cal Rd3e4]} e3 {[%emt 0:00:29]} 21. Qb3 {[%emt 0:00:34]} g5 {[%emt 0:00:35]} 22. Qa3 {[%emt 0:00:06]} Be7 {[%emt 0:00:43]} 23. fxg5 {[%emt 0:00:01]} ({Better is} 23. Rf1 $11) 23... f4 $15 {[%emt 0:00:07]} 24. gxf4 Rxf4 {[%emt 0:00:02] White must now prevent ...Bg4.} 25. Rf1 {[%emt 0:00:43]} Ref8 {[%emt 0:00:09]} (25... Bxg5 26. Bxd6 Rxf1+ 27. Bxf1 $11) 26. Rxf4 {[%emt 0:00:08]} Rxf4 {[%emt 0:00:02]} 27. Rf1 {[%emt 0:00:09]} Rxf1+ {[%emt 0:00:20]} ({Don't play} 27... Rg4 28. Qb2 $11) 28. Bxf1 {[%emt 0:00:54]} Bg4 {[%emt 0:00:19] [#]} (28... Qd8 $11) 29. Qb2 $1 $16 {[%emt 0:00:05]} Qd7 {[%emt 0:01:17]} 30. Qxd4 {[%emt 0:00:03]} Bxg5 {[%emt 0:00:03][%mdl 8192]} (30... e2 $16 {is a better chance.} 31. Bg2 Bxg5) 31. Bc3 $18 {[%emt 0:00:26] Hoping for Qh8+.} h6 {[%emt 0:01:31] [#]} 32. Qh8+ $2 {[%emt 0:00:20]} (32. h3 $1 $18 {[%cal Rh3g4]}) 32... Kf7 $14 {[%emt 0:00:02]} 33. Qg7+ {[%emt 0:00:12]} Ke8 {[%emt 0:00:06] ...Qxg7 is the strong threat.} 34. Qg8+ {[%emt 0:00:11]} Ke7 {[%emt 0:00:07]} 35. Qg7+ {[%emt 0:00:01] Weighted Error Value: White=0.29 (precise) /Black=0.35} 1/2-1/2